[Event "Mitropa Cup Women 2019"]
[Site "Radenci"]
[Date "2019.06.03"]
[Round "8.11"]
[White "Koubova, Anna Marie"]
[Black "Urh, Zala"]
[Result "1-0"]
[ECO "E05"]
[WhiteElo "1975"]
[BlackElo "2099"]
[Annotator "NA"]
[PlyCount "75"]
[EventDate "2019.05.27"]
[EventType "team-tourn"]
[EventCountry "SLO"]
[SourceTitle "playchess.com"]
[Source "ChessBase"]
[SourceQuality "1"]
[WhiteTeam "Czech Republic"]
[BlackTeam "Slovenia"]
[WhiteTeamCountry "CZE"]
[BlackTeamCountry "SLO"]
[TimeControl "40/5400+30:1800+30"]

1. d4 {[%emt 0:00:00]} Nf6 {[%emt 0:00:00]} 2. c4 {[%emt 0:00:00]} e6 {[%emt 0:00:00]} 3. Nf3 {[%emt 0:00:00]} d5 {[%emt 0:00:00]} 4. g3 {[%emt 0:00:00]} Be7 {[%emt 0:00:00]} 5. Bg2 {[%emt 0:00:04]} O-O {[%emt 0:00:05]} 6. O-O {[%emt 0:00:08]} dxc4 {[%emt 0:00:09]} 7. Ne5 {[%emt 0:00:08]} Nc6 {[%emt 0:00:50]} 8. Nxc6 {[%emt 0:00:06]} bxc6 {[%emt 0:00:04]} 9. Na3 {[%emt 0:00:08]} Rb8 {[%emt 0:06:09] E05: Open Catalan: 5 Nf3 Be7} (9... Bxa3 10. bxa3 Ba6 11. Qa4 Bb5 12. Qc2 Qxd4 13. Bb2 Qc5 14. Rfd1 Rfd8 15. a4 Ba6 16. Qc3 h6 17. Ba3 Qf5 18. Bxc6 Rab8 {½-½ (40) Nakamura,H (2777)-So,W (2780) chess.com INT 2018}) 10. Nxc4 {[%emt 0:03:55]} Bb7 $146 {[%emt 0:02:36]} ({Predecessor:} 10... Rb4 11. b3 Bd7 12. Qc2 c5 13. dxc5 Bxc5 14. Rd1 Qe7 15. Bb2 Rd8 16. Ne5 Bd6 17. Rac1 {1-0 (42) Blomqvist,E (2545)-Bracker,F (2427) Fornebu 2016}) 11. Na5 {[%emt 0:05:40]} Nd5 {[%emt 0:01:55]} 12. Qc2 {[%emt 0:06:19]} Qd7 {[%emt 0:11:56]} 13. a3 {[%emt 0:01:32]} h5 {[%emt 0:09:09]} 14. b4 {[%emt 0:02:30]} h4 {[%emt 0:01:04]} 15. Bb2 {[%emt 0:00:28]} hxg3 {[%emt 0:00:56]} 16. hxg3 {[%emt 0:00:08]} Ba8 {[%emt 0:12:05]} 17. Nc4 {[%emt 0:08:44]} Qe8 {[%emt 0:06:10]} 18. Rac1 {[%emt 0:04:36]} Rb5 {[%emt 0:08:40]} 19. Rfd1 {[%emt 0:04:46]} Bg5 {[%emt 0:04:36]} 20. e3 {[%emt 0:01:20]} Rb8 {[%emt 0:00:18]} 21. Re1 {[%emt 0:06:01]} Rb5 {[%emt 0:02:14]} 22. Ne5 {[%emt 0:02:45]} Rb6 {[%emt 0:00:29]} 23. Qa4 {[%emt 0:00:55]} f6 {[%emt 0:02:53]} 24. Nf3 {[%emt 0:02:00]} a6 {[%emt 0:04:00]} 25. Rc5 {[%emt 0:04:15]} Bh6 {[%emt 0:01:56]} 26. e4 {[%emt 0:01:56]} Ne7 {[%emt 0:00:20]} 27. Bh3 {[%emt 0:01:32]} f5 {[%emt 0:13:42]} 28. Qb3 {[%emt 0:01:33]} f4 $18 {[%emt 0:05:22]} 29. Bxe6+ {[%emt 0:07:28]} Kh8 {[%emt 0:01:03]} 30. Ne5 {[%emt 0:00:18]} fxg3 {[%emt 0:01:05]} 31. fxg3 {[%emt 0:00:27]} Rf6 {[%emt 0:01:29]} 32. Ng4 {[%emt 0:06:43]} Rf8 {[%emt 0:01:00]} 33. Nxh6 {[%emt 0:04:30]} gxh6 {[%emt 0:00:01]} 34. d5+ {[%emt 0:00:23]} Kh7 {[%emt 0:00:06]} 35. Qc3 {[%emt 0:00:12]} Qg6 {[%emt 0:01:25]} 36. Bf5 {[%emt 0:00:14]} Nxf5 {[%emt 0:00:06]} 37. exf5 {[%emt 0:00:06]} Qg5 {[%emt 0:01:40]} 38. Re6 {[%emt 0:03:53]} 1-0

[Event "Mitropa Cup Women 2019"]
[Site "Radenci"]
[Date "2019.06.03"]
[Round "8.12"]
[White "Hercog, Nusa"]
[Black "Pribylova, Sofie"]
[Result "1-0"]
[ECO "D93"]
[WhiteElo "2062"]
[BlackElo "2069"]
[Annotator "NA"]
[PlyCount "87"]
[EventDate "2019.05.27"]
[EventType "team-tourn"]
[EventCountry "SLO"]
[SourceTitle "playchess.com"]
[Source "ChessBase"]
[SourceQuality "1"]
[WhiteTeam "Slovenia"]
[BlackTeam "Czech Republic"]
[WhiteTeamCountry "SLO"]
[BlackTeamCountry "CZE"]
[TimeControl "40/5400+30:1800+30"]

1. d4 {[%emt 0:00:00]} Nf6 {[%emt 0:00:00]} 2. c4 {[%emt 0:00:00]} g6 {[%emt 0:00:00]} 3. Nc3 {[%emt 0:00:00]} d5 {[%emt 0:00:10]} 4. Bf4 {[%emt 0:00:09]} Bg7 {[%emt 0:00:36]} 5. e3 {[%emt 0:00:14]} O-O {[%emt 0:00:44]} 6. Rc1 {[%emt 0:00:25]} c6 {[%emt 0:11:13]} 7. Nf3 {[%emt 0:00:51]} b6 {[%emt 0:02:04]} 8. Bd3 {[%emt 0:12:40]} Bb7 {[%emt 0:04:31]} 9. O-O {[%emt 0:02:19] D93: Grünfeld: 4 Nf3 Bg7 5 Bf4 0-0 6 e3} dxc4 {[%emt 0:03:40]} 10. Bxc4 {[%emt 0:00:14]} Nbd7 {[%emt 0:00:11]} 11. Qb3 $146 {[%emt 0:07:23]} ({Predecessor:} 11. h3 b5 12. Be2 Qb6 13. Qc2 a6 14. Rfd1 Nh5 15. Ne5 Nxe5 16. Bxe5 {1-0 (49) Buttell,D (1758)-Runarsson,G (1937) Porto Carras 2018}) 11... e6 {[%emt 0:00:43]} 12. Bd6 {[%emt 0:19:46]} Re8 {[%emt 0:00:11]} 13. Rfd1 {[%emt 0:06:20]} Nd5 {[%emt 0:03:56]} 14. e4 {[%emt 0:04:23]} Nxc3 {[%emt 0:01:20]} 15. bxc3 {[%emt 0:00:33]} Bh6 {[%emt 0:05:30]} 16. Ra1 {[%emt 0:02:05]} Qc8 {[%emt 0:03:29]} 17. e5 {[%emt 0:03:27]} c5 {[%emt 0:01:51]} 18. Be2 {[%emt 0:02:00]} cxd4 {[%emt 0:04:40]} 19. cxd4 {[%emt 0:01:14]} Bd5 {[%emt 0:03:02]} 20. Qa3 {[%emt 0:03:40]} Nb8 {[%emt 0:02:32]} 21. h3 {[%emt 0:02:55]} Nc6 {[%emt 0:02:00]} 22. Nh2 {[%emt 0:03:08]} Qd8 {[%emt 0:05:14]} 23. Ng4 {[%emt 0:00:56]} Bg5 {[%emt 0:01:29]} 24. Ne3 {[%emt 0:08:16]} f5 {[%emt 0:04:41]} 25. Nxd5 {[%emt 0:01:06]} exd5 {[%emt 0:00:05]} 26. Bb5 {[%emt 0:01:00]} Rc8 {[%emt 0:01:48]} 27. Ba6 {[%emt 0:02:04]} Na5 {[%emt 0:01:53]} 28. Bxc8 {[%emt 0:00:23]} Qxc8 {[%emt 0:00:03]} 29. Bb4 {[%emt 0:03:19]} Nc4 $18 {[%emt 0:01:19]} 30. Qg3 {[%emt 0:05:58]} Qd8 {[%emt 0:01:02]} 31. f4 {[%emt 0:00:41]} Bh4 {[%emt 0:01:22]} 32. Qf3 {[%emt 0:00:28]} a5 {[%emt 0:02:34]} 33. Ba3 {[%emt 0:01:09]} Qd7 {[%emt 0:01:36]} 34. g3 {[%emt 0:01:35]} Bd8 {[%emt 0:02:24]} 35. Rac1 {[%emt 0:00:54]} Qa4 {[%emt 0:00:42]} 36. Qxd5+ {[%emt 0:00:49]} Kg7 {[%emt 0:01:02]} 37. Qxc4 {[%emt 0:00:13]} Qxa3 {[%emt 0:00:09]} 38. Qb3 {[%emt 0:00:19]} Qe7 {[%emt 0:00:49]} 39. d5 {[%emt 0:01:19]} g5 {[%emt 0:00:19]} 40. d6 {[%emt 0:00:00]} Qd7 {[%emt 0:00:00]} 41. Qc3 {[%emt 0:06:28]} Kh6 {[%emt 0:01:49]} 42. Qc6 {[%emt 0:02:34]} Qf7 {[%emt 0:01:18]} 43. d7+ {[%emt 0:00:19]} Re6 {[%emt 0:00:23]} 44. Qxe6+ {[%emt 0:00:36]} 1-0

[Event "Mitropa Cup Women 2019"]
[Site "Radenci"]
[Date "2019.06.03"]
[Round "8.14"]
[White "Afraoui, Anaelle"]
[Black "Cvitan, Ena"]
[Result "0-1"]
[ECO "B11"]
[WhiteElo "2068"]
[BlackElo "2132"]
[Annotator "RC"]
[PlyCount "126"]
[EventDate "2019.05.27"]
[EventType "team-tourn"]
[EventCountry "SLO"]
[SourceTitle "playchess.com"]
[Source "ChessBase"]
[SourceQuality "1"]
[WhiteTeam "France"]
[BlackTeam "Croatia"]
[WhiteTeamCountry "FRA"]
[BlackTeamCountry "CRO"]
[TimeControl "40/5400+30:1800+30"]

1. e4 {[%emt 0:00:00]} c6 {[%emt 0:00:00]} 2. Nc3 {[%emt 0:00:00]} d5 {[%emt 0:00:02]} 3. Nf3 {[%emt 0:00:17]} dxe4 {[%emt 0:00:21]} 4. Nxe4 {[%emt 0:00:17]} Nf6 {[%emt 0:00:02]} 5. Qe2 {[%emt 0:01:02]} Nxe4 {[%emt 0:00:49]} 6. Qxe4 {[%emt 0:00:12]} Qa5 {[%emt 0:00:01]} 7. Bc4 {[%emt 0:01:26]} Bf5 {[%emt 0:00:03]} 8. Qf4 {[%emt 0:05:24]} e6 {[%emt 0:00:07]} 9. O-O {[%emt 0:04:28]} Bxc2 {[%emt 0:16:57]} 10. Nd4 {[%emt 0:21:50]} Bg6 {[%emt 0:03:25]} 11. Re1 {[%emt 0:06:01]} Be7 {[%emt 0:02:23]} 12. Bxe6 {[%emt 0:08:25]} O-O {[%emt 0:08:12]} 13. Bb3 {[%emt 0:11:19]} Bf6 {[%emt 0:05:46]} 14. Nf3 {[%emt 0:00:59]} c5 {[%emt 0:18:44]} 15. Bd5 {[%emt 0:07:26]} Qb6 {[%emt 0:07:18]} 16. Nh4 {[%emt 0:03:46]} Nc6 {[%emt 0:04:44]} 17. Nxg6 {[%emt 0:00:41]} hxg6 {[%emt 0:00:02]} 18. d3 {[%emt 0:01:13]} Nb4 {[%emt 0:01:07]} 19. Qc4 {[%emt 0:05:05]} Rad8 {[%emt 0:00:53]} 20. Be4 {[%emt 0:01:07]} Rd4 {[%emt 0:01:59]} 21. Qb3 {[%emt 0:01:01]} Nxd3 {[%emt 0:08:45]} 22. Bxd3 {[%emt 0:01:54]} Qxb3 {[%emt 0:00:17]} 23. axb3 {[%emt 0:00:08]} Rxd3 {[%emt 0:00:07]} 24. b4 {[%emt 0:01:02]} cxb4 {[%emt 0:06:52]} 25. Rxa7 {[%emt 0:01:20]} b6 {[%emt 0:02:55]} 26. g3 {[%emt 0:05:06]} Rc8 {[%emt 0:00:44]} 27. Kg2 {[%emt 0:01:37]} g5 {[%emt 0:01:42]} 28. Rb7 {[%emt 0:05:30]} Rd6 {[%emt 0:06:56]} 29. Be3 {[%emt 0:03:06]} Bxb2 {[%emt 0:00:21]} 30. Bxb6 {[%emt 0:00:34]} Bc3 {[%emt 0:00:22]} 31. Ree7 {[%emt 0:01:11]} b3 {[%emt 0:00:33]} 32. Be3 {[%emt 0:01:55]} Bf6 {[%emt 0:00:50]} 33. Re4 {[%emt 0:00:22]} b2 {[%emt 0:00:28]} 34. Reb4 {[%emt 0:00:03]} Rd1 {[%emt 0:01:53]} 35. h3 {[%emt 0:00:43]} Ra8 {[%emt 0:01:00]} 36. Kf3 {[%emt 0:00:48]} Raa1 {[%emt 0:00:17]} 37. Rxb2 {[%emt 0:00:06]} Bxb2 {[%emt 0:00:01]} 38. Rxb2 {[%emt 0:00:06]} f6 {[%emt 0:00:35]} 39. Rb7 {[%emt 0:00:30]} Rh1 {[%emt 0:00:50]} 40. Kg4 {[%emt 0:00:00]} Ra4+ {[%emt 0:00:00]} 41. Kf3 {[%emt 0:09:39]} Rxh3 {[%emt 0:02:15]} 42. Rd7 {[%emt 0:01:16]} Rh1 {[%emt 0:01:53]} 43. Kg2 {[%emt 0:00:20]} Rb1 {[%emt 0:02:34]} 44. Kf3 {[%emt 0:02:00]} g4+ {[%emt 0:00:47]} 45. Ke2 {[%emt 0:00:13]} Ra2+ {[%emt 0:02:45]} 46. Rd2 {[%emt 0:01:00]} Rxd2+ {[%emt 0:00:20]} 47. Bxd2 {[%emt 0:00:05]} Rb3 {[%emt 0:00:26]} 48. Be3 {[%emt 0:01:13]} Kf7 {[%emt 0:00:07]} 49. Ba7 {[%emt 0:00:36]} Rf3 {[%emt 0:00:52]} 50. Be3 {[%emt 0:00:14]} g5 {[%emt 0:00:23]} 51. Bd2 {[%emt 0:00:05]} Kg6 {[%emt 0:00:06]} 52. Kf1 {[%emt 0:00:42]} f5 {[%emt 0:00:19]} 53. Ba5 {[%emt 0:00:39]} f4 {[%emt 0:00:17]} 54. Kg2 {[%emt 0:02:41]} Kf5 {[%emt 0:00:12]} 55. Be1 {[%emt 0:02:17]} Rb3 {[%emt 0:00:46]} 56. Bd2 {[%emt 0:00:30]} Ke4 {[%emt 0:00:59]} 57. gxf4 {[%emt 0:03:09]} gxf4 {[%emt 0:00:09]} 58. Ba5 {[%emt 0:00:40]} Rb2 {[%emt 0:00:18]} 59. Bc3 {[%emt 0:00:03]} Rc2 {[%emt 0:00:09]} 60. Ba5 {[%emt 0:00:05]} Ra2 {[%emt 0:01:27]} 61. Bb6 {[%emt 0:01:13]} g3 {[%emt 0:04:00]} 62. Bc5 {[%emt 0:00:18]} gxf2 {[%emt 0:00:31]} 63. Bxf2 {[%emt 0:00:15]} Rb2 {[%emt 0:00:13]} 0-1

[Event "Mitropa Cup Women 2019"]
[Site "Radenci"]
[Date "2019.06.03"]
[Round "8.15"]
[White "Blazeka, Mihaela"]
[Black "Choisy, Mathilde"]
[Result "1/2-1/2"]
[ECO "B07"]
[WhiteElo "2118"]
[BlackElo "2113"]
[Annotator "RC"]
[PlyCount "81"]
[EventDate "2019.05.27"]
[EventType "team-tourn"]
[EventCountry "SLO"]
[SourceTitle "playchess.com"]
[Source "ChessBase"]
[SourceQuality "1"]
[WhiteTeam "Croatia"]
[BlackTeam "France"]
[WhiteTeamCountry "CRO"]
[BlackTeamCountry "FRA"]
[TimeControl "40/5400+30:1800+30"]

1. e4 {[%emt 0:00:06]} d6 {[%emt 0:00:00]} 2. d4 {[%emt 0:00:32]} Nf6 {[%emt 0:00:00]} 3. Nc3 {[%emt 0:02:14]} g6 {[%emt 0:00:00]} 4. Bc4 {[%emt 0:04:27]} Bg7 {[%emt 0:03:02]} 5. a4 {[%emt 0:02:54]} O-O {[%emt 0:04:23]} 6. Bb3 {[%emt 0:03:18]} Nc6 {[%emt 0:07:50]} 7. Nge2 {[%emt 0:02:43]} e5 {[%emt 0:07:43]} 8. dxe5 {[%emt 0:10:29]} dxe5 {[%emt 0:01:29]} 9. Bg5 {[%emt 0:00:37]} Qxd1+ {[%emt 0:19:00]} 10. Rxd1 {[%emt 0:00:22]} h6 {[%emt 0:04:08]} 11. Bh4 {[%emt 0:10:43]} a6 {[%emt 0:03:04]} 12. f3 {[%emt 0:03:03]} Re8 {[%emt 0:04:35]} 13. O-O {[%emt 0:02:01]} Nb4 {[%emt 0:04:22]} 14. Rd2 {[%emt 0:05:41]} Nd7 {[%emt 0:03:09]} 15. Rfd1 {[%emt 0:06:01]} Nc5 {[%emt 0:00:09]} 16. Rd8 {[%emt 0:18:16]} Be6 {[%emt 0:00:50]} 17. Bxe6 {[%emt 0:04:45]} Nxe6 {[%emt 0:00:51]} 18. R8d2 {[%emt 0:03:20]} Bf8 {[%emt 0:09:28]} 19. Nd5 {[%emt 0:01:00]} Nxd5 {[%emt 0:00:37]} 20. Rxd5 {[%emt 0:00:56]} Bg7 {[%emt 0:09:01]} 21. b4 {[%emt 0:03:14]} Bf8 {[%emt 0:05:47]} 22. Be1 {[%emt 0:05:57]} Rad8 {[%emt 0:02:13]} 23. Bc3 {[%emt 0:02:12]} f6 {[%emt 0:01:13]} 24. g3 {[%emt 0:03:24]} Kf7 {[%emt 0:00:20]} 25. Kf2 {[%emt 0:00:48]} h5 {[%emt 0:02:05]} 26. h4 {[%emt 0:02:17]} Bd6 {[%emt 0:01:33]} 27. Be1 {[%emt 0:00:50]} Bf8 {[%emt 0:00:29]} 28. c4 {[%emt 0:00:26]} c6 {[%emt 0:00:30]} 29. Rxd8 {[%emt 0:00:47]} Rxd8 {[%emt 0:00:03]} 30. Rxd8 {[%emt 0:00:08]} Nxd8 {[%emt 0:00:04]} 31. Nc1 {[%emt 0:00:51]} b5 {[%emt 0:04:31]} 32. axb5 {[%emt 0:00:20]} axb5 {[%emt 0:00:04]} 33. c5 {[%emt 0:00:54]} Ke6 {[%emt 0:01:18]} 34. Nd3 {[%emt 0:00:37]} Bh6 {[%emt 0:00:32]} 35. Bc3 {[%emt 0:00:21]} Nf7 {[%emt 0:02:10]} 36. f4 {[%emt 0:00:09]} Bg7 {[%emt 0:00:26]} 37. Kf3 {[%emt 0:00:20]} Nh6 {[%emt 0:00:27]} 38. Nf2 {[%emt 0:01:03]} Nf7 {[%emt 0:00:04]} 39. Nd3 {[%emt 0:00:48]} Nh6 {[%emt 0:00:03]} 40. Nf2 {[%emt 0:00:00]} Nf7 {[%emt 0:00:00]} 41. Nd3 {[%emt 0:02:28]} 1/2-1/2

[Event "Mitropa Cup Women 2019"]
[Site "Radenci"]
[Date "2019.06.03"]
[Round "8.16"]
[White "Djidjeli, Sarah"]
[Black "Spiranec, Noemi"]
[Result "0-1"]
[ECO "B42"]
[WhiteElo "2012"]
[BlackElo "2009"]
[Annotator "NA"]
[PlyCount "80"]
[EventDate "2019.05.27"]
[EventType "team-tourn"]
[EventCountry "SLO"]
[SourceTitle "playchess.com"]
[Source "ChessBase"]
[SourceQuality "1"]
[WhiteTeam "France"]
[BlackTeam "Croatia"]
[WhiteTeamCountry "FRA"]
[BlackTeamCountry "CRO"]
[TimeControl "40/5400+30:1800+30"]

1. e4 {[%emt 0:00:00]} c5 {[%emt 0:00:00]} 2. Nf3 {[%emt 0:00:00]} e6 {[%emt 0:00:00]} 3. d4 {[%emt 0:00:00]} cxd4 {[%emt 0:00:00]} 4. Nxd4 {[%emt 0:00:00]} a6 {[%emt 0:00:00]} 5. Bd3 {[%emt 0:00:00]} Nf6 {[%emt 0:00:12]} 6. O-O {[%emt 0:00:48]} e5 {[%emt 0:00:28]} 7. Nb3 {[%emt 0:00:38]} d6 {[%emt 0:00:08]} 8. c4 {[%emt 0:01:44]} Be7 {[%emt 0:00:11]} 9. Nc3 {[%emt 0:01:27]} O-O {[%emt 0:00:15]} 10. Qe2 {[%emt 0:01:19]} Nc6 {[%emt 0:01:07]} 11. Rd1 {[%emt 0:03:54]} Be6 {[%emt 0:10:19]} 12. h3 {[%emt 0:06:04]} Nd7 {[%emt 0:12:36]} 13. Be3 {[%emt 0:05:07]} Rc8 {[%emt 0:08:00]} 14. Nd5 {[%emt 0:07:23]} Bxd5 {[%emt 0:01:33]} 15. cxd5 $16 {[%emt 0:01:03]} Ncb8 {[%emt 0:05:15]} 16. Qd2 {[%emt 0:04:33]} h6 {[%emt 0:04:52]} 17. a4 {[%emt 0:03:35]} b6 {[%emt 0:01:57]} 18. Qe2 {[%emt 0:02:51]} a5 {[%emt 0:00:46]} 19. Nd2 {[%emt 0:07:28]} Bg5 {[%emt 0:01:57]} 20. Bxg5 {[%emt 0:04:51]} hxg5 {[%emt 0:00:47]} 21. Nc4 {[%emt 0:03:22]} Nc5 {[%emt 0:00:35]} 22. Ra3 {[%emt 0:03:50]} g6 {[%emt 0:03:33]} 23. Rb1 {[%emt 0:03:53]} Qc7 {[%emt 0:05:26]} 24. Ne3 {[%emt 0:03:11]} Nbd7 {[%emt 0:03:19]} 25. Re1 {[%emt 0:12:27]} Nf6 {[%emt 0:04:30]} 26. Ng4 {[%emt 0:02:54]} Nxg4 {[%emt 0:01:40]} 27. Qxg4 {[%emt 0:00:13]} Qe7 {[%emt 0:00:45]} 28. Bb5 {[%emt 0:04:59]} f5 {[%emt 0:05:31]} 29. exf5 {[%emt 0:00:32]} gxf5 {[%emt 0:00:01]} 30. Qh5 {[%emt 0:01:18]} Rf7 {[%emt 0:00:25]} 31. Rg3 {[%emt 0:05:47]} Rg7 {[%emt 0:00:17]} 32. Qd1 {[%emt 0:05:00]} Rf8 {[%emt 0:02:43]} 33. Rc3 {[%emt 0:02:09]} g4 {[%emt 0:04:38]} 34. hxg4 {[%emt 0:01:59]} fxg4 {[%emt 0:00:02]} 35. Rg3 {[%emt 0:01:54]} Qh4 {[%emt 0:00:27]} 36. Ree3 {[%emt 0:00:46]} Rf6 {[%emt 0:00:15]} 37. Be2 {[%emt 0:00:28]} Rh6 {[%emt 0:00:14]} 38. Rh3 {[%emt 0:00:54]} gxh3 {[%emt 0:00:02]} 39. Bf3 {[%emt 0:00:29]} hxg2 {[%emt 0:00:12]} 40. Bxg2 {[%emt 0:00:00]} Qh1# {[%emt 0:00:00]} 0-1

[Event "Mitropa Cup Women 2019"]
[Site "Radenci"]
[Date "2019.06.04"]
[Round "9.4"]
[White "Spiranec, Noemi"]
[Black "Hercog, Nusa"]
[Result "1-0"]
[ECO "D23"]
[WhiteElo "2009"]
[BlackElo "2062"]
[Annotator "NA RC"]
[PlyCount "99"]
[EventDate "2019.05.27"]
[EventType "team-tourn"]
[EventCountry "SLO"]
[SourceTitle "playchess.com"]
[Source "ChessBase"]
[SourceQuality "1"]
[WhiteTeam "Croatia"]
[BlackTeam "Slovenia"]
[WhiteTeamCountry "CRO"]
[BlackTeamCountry "SLO"]
[TimeControl "40/5400+30:1800+30"]

1. d4 {[%emt 0:00:00]} d5 {[%emt 0:00:00]} 2. c4 {[%emt 0:00:00]} c6 {[%emt 0:00:00]} 3. Nf3 {[%emt 0:00:00]} Nf6 {[%emt 0:00:00]} 4. Qc2 {[%emt 0:00:00]} dxc4 {[%emt 0:00:01]} 5. Qxc4 {[%emt 0:00:00]} Bf5 {[%emt 0:00:12]} 6. g3 {[%emt 0:00:14]} e6 {[%emt 0:00:14]} 7. Bg2 {[%emt 0:00:05]} Nbd7 {[%emt 0:00:31]} 8. O-O {[%emt 0:00:30]} Be7 {[%emt 0:00:30]} 9. e3 {[%emt 0:00:09]} O-O {[%emt 0:00:40] D23: Queen's Gambit Accepted: 3 Nf3 Nf6 sidelines} 10. Qe2 {[%emt 0:00:42]} h6 {[%emt 0:06:41]} (10... Qa5 11. Nc3 Ne4 12. Bd2 Nxd2 13. Nxd2 Rfd8 14. Rfd1 Rac8 15. e4 Bg6 {½-½ (25) Bu,X (2725)-Shankland,S (2671) Liaocheng 2018}) 11. Nc3 {[%emt 0:04:23]} Ne4 {[%emt 0:09:12]} 12. Rd1 {[%emt 0:00:09]} Qc7 {[%emt 0:06:06]} 13. Ne1 {[%emt 0:12:23]} Ndf6 {[%emt 0:10:17]} 14. f3 {[%emt 0:02:47]} Nxc3 {[%emt 0:00:22]} 15. bxc3 {[%emt 0:00:01]} e5 {[%emt 0:07:23]} 16. e4 {[%emt 0:02:00] [#]} Bg6 $146 {[%emt 0:02:46]} ({Predecessor:} 16... Be6 17. Be3 {½-½ (63) Quinn,M (2346)-Cifuentes Parada,R (2557) Benasque 1999}) 17. Be3 {[%emt 0:05:05]} Rfd8 {[%emt 0:04:40]} 18. Nd3 {[%emt 0:06:19]} Nd7 {[%emt 0:07:12]} 19. f4 {[%emt 0:03:41]} exd4 {[%emt 0:04:00]} 20. cxd4 {[%emt 0:00:52]} f5 {[%emt 0:03:23]} 21. Bf2 {[%emt 0:12:03]} Nf6 {[%emt 0:07:11]} 22. Ne5 {[%emt 0:01:58]} Bh5 {[%emt 0:01:09]} 23. Qc4+ {[%emt 0:00:06]} Kh7 {[%emt 0:00:37]} 24. Bh3 {[%emt 0:05:30]} Bg4 {[%emt 0:02:08]} 25. Bxg4 $16 {[%emt 0:00:32]} ({Better is} 25. Nxg4 $18 Nxg4 26. Rab1 (26. exf5 Nxf2 27. Kxf2 Bf6 $11)) 25... Nxg4 {[%emt 0:01:50]} 26. Nxg4 {[%emt 0:02:15]} fxg4 {[%emt 0:00:04]} 27. d5 {[%emt 0:03:20]} (27. Rab1 $18 {and White stays clearly on top.}) 27... Rac8 {[%emt 0:06:32]} 28. Rac1 {[%emt 0:00:22]} Qa5 {[%emt 0:02:30]} 29. Qe2 {[%emt 0:01:03]} cxd5 {[%emt 0:05:16]} 30. Rxc8 {[%emt 0:10:03]} Rxc8 {[%emt 0:00:07]} 31. exd5 {[%emt 0:00:03]} Bc5 {[%emt 0:04:49]} 32. Kg2 {[%emt 0:13:36]} Bxf2 {[%emt 0:00:50]} 33. Kxf2 {[%emt 0:00:02]} Qb6+ {[%emt 0:03:31]} 34. Kg2 {[%emt 0:00:40]} Qg6 {[%emt 0:00:43]} 35. Qd3 {[%emt 0:01:44]} Qxd3 {[%emt 0:01:23]} 36. Rxd3 {[%emt 0:00:01]} Kg6 {[%emt 0:02:14]} 37. Kf2 {[%emt 0:02:01]} Kf5 {[%emt 0:01:23]} 38. Ke3 {[%emt 0:01:20]} Rc7 {[%emt 0:01:22]} 39. Rd2 {[%emt 0:01:10]} Re7+ {[%emt 0:00:57]} 40. Kd4 {[%emt 0:00:00]} Rd7 {[%emt 0:00:00]} (40... Kf6 {was worth a try.} 41. d6 Re1) 41. Re2 {[%emt 0:03:58]} Kf6 {[%emt 0:04:38]} 42. Kc5 {[%emt 0:03:11]} Kf7 {[%emt 0:03:43]} 43. d6 {[%emt 0:00:54]} Kf8 {[%emt 0:08:57]} 44. Kd5 {[%emt 0:00:16]} Kf7 {[%emt 0:00:30]} 45. Rc2 {[%emt 0:00:09]} Ke8 {[%emt 0:00:47]} 46. Rc8+ {[%emt 0:00:27]} Kf7 {[%emt 0:01:24]} 47. Rc7 {[%emt 0:00:06]} Ke8 {[%emt 0:00:07]} 48. Ke6 {[%emt 0:00:05]} Rd8 {[%emt 0:01:51]} 49. d7+ {[%emt 0:00:18]} Kf8 {[%emt 0:00:05]} 50. Rc8 {[%emt 0:00:04]} 1-0